fUST/lending_fUST_20240509
["ID","MTS","AMOUNT","RATE_DAILY","PERIOD"]
[326672112,1715212254071,-1150.83,0.00024657,2]
[326672114,1715212254080,-500.0,0.00024657,2]
[326672116,1715212254089,-2305.61,0.00024657,2]
[326672118,1715212254098,-500.0,0.00024657,2]
[326672120,1715212254107,-500.0,0.00024657,2]
[326672122,1715212254119,-500.0,0.00024657,2]
[326672124,1715212254128,-500.0,0.00024657,2]
[326672126,1715212254137,-500.0,0.00024657,2]
[326672127,1715212254146,-500.0,0.00024657,2]
[326672129,1715212254155,-760.51,0.00024657,2]
[326672131,1715212254164,-500.0,0.00024657,2]
[326672133,1715212254174,-500.0,0.00024657,2]
[326672135,1715212254183,-500.0,0.00024657,2]
[326672137,1715212254193,-500.0,0.00024657,2]
[326672139,1715212254203,-500.0,0.00024657,2]
[326672141,1715212254212,-500.0,0.00024657,2]
[326672143,1715212254221,-500.0,0.00024657,2]
[326672145,1715212254230,-500.0,0.00024657,2]
[326672147,1715212254240,-500.0,0.00024657,2]
[326672149,1715212254249,-500.0,0.00024657,2]
[326672151,1715212254258,-500.0,0.00024657,2]
[326672153,1715212254268,-2119.32,0.00024657,2]
[326672155,1715212254277,-589.95,0.00024657,2]
[326672157,1715212254286,-500.0,0.00024657,2]
[326672159,1715212254296,-500.0,0.00024657,2]
[326672161,1715212254306,-214.05636568,0.00024657,2]
[326672163,1715212254315,-500.0,0.00024657,2]
[326672165,1715212254324,-651.96,0.00024657,2]
[326672167,1715212254334,-13620.63,0.00024657,2]
[326672169,1715212254343,-500.0,0.00024657,2]
[326672171,1715212254352,-500.0,0.00024657,2]
[326672173,1715212254363,-500.0,0.00024657,2]
[326672175,1715212254372,-500.0,0.00024657,2]
[326672177,1715212254382,-500.0,0.00024657,2]
[326672179,1715212254391,-1242.93,0.00024657,2]
[326672181,1715212254402,-500.0,0.00024657,2]
[326672182,1715212254411,-500.0,0.00024657,2]
[326672184,1715212254421,-500.0,0.00024657,2]
[326672186,1715212254430,-500.0,0.00024657,2]
[326672188,1715212254439,-500.0,0.00024657,2]
[326672190,1715212254451,-500.0,0.00024657,2]
[326672192,1715212254460,-500.0,0.00024657,2]
[326672193,1715212254470,-500.0,0.00024657,2]
[326672195,1715212254482,-1332.52,0.00024657,2]
[326672196,1715212254492,-500.0,0.00024657,2]
[326672197,1715212254501,-500.0,0.00024657,2]
[326672198,1715212254511,-500.0,0.00024657,2]
[326672199,1715212254521,-500.0,0.00024657,2]
[326672200,1715212254530,-500.0,0.00024657,2]
[326672201,1715212254540,-200.0,0.00024658,15]
[326672202,1715212254549,-2000.0,0.00024731,2]
[326672203,1715212254559,-620.00000002,0.00024796,2]
[326672204,1715212254568,-8565.71922103,0.00024831,5]
[326672205,1715212254579,-55555.0,0.00024831,3]
[326672206,1715212254589,-153.62448966,0.00024831,2]
[326672207,1715212254599,-500.0,0.00024931,2]
[326672208,1715212254608,-223.11119034,0.00024931,2]
[326672209,1715212254619,-1.17177151,0.00024931,2]
[326672210,1715212254634,-644.48822849,0.00024931,2]
[326672211,1715212254643,-500.0,0.00024931,2]
[326672212,1715212254652,-500.0,0.00024931,2]
[326672213,1715212254661,-500.0,0.00024931,2]
[326672214,1715212254670,-513.357965,0.00024931,2]
[326672215,1715212254679,-500.0,0.00024931,2]
[326672216,1715212254689,-500.0,0.00024931,2]
[326672217,1715212254698,-500.0,0.00024931,2]
[326672218,1715212254707,-500.0,0.00024931,2]
[326672219,1715212254716,-500.0,0.00024931,2]
[326672220,1715212254725,-500.0,0.00024931,2]
[326672221,1715212254736,-500.0,0.00024931,2]
[326672222,1715212254746,-500.0,0.00024931,2]
[326672223,1715212254755,-500.0,0.00024931,2]
[326672224,1715212254772,-500.0,0.00024931,2]
[326672225,1715212254784,-500.0,0.00024931,2]
[326672226,1715212254794,-500.0,0.00024931,2]
[326672227,1715212254804,-151.0,0.00024931,2]
[326672228,1715212254814,-500.0,0.00024931,2]
[326672229,1715212254823,-500.0,0.00024931,2]
[326672230,1715212254833,-500.0,0.00024931,2]
[326672231,1715212254842,-500.0,0.00024931,2]
[326672232,1715212254853,-500.0,0.00024931,2]
[326672233,1715212254863,-740.98,0.00024931,2]
[326672234,1715212254872,-500.0,0.00024931,2]
[326672235,1715212254882,-500.0,0.00024931,2]
[326672236,1715212254892,-500.0,0.00024931,2]
[326672237,1715212254901,-500.0,0.00024931,2]
[326672238,1715212254911,-151.0,0.00024931,2]
[326672239,1715212254920,-151.0,0.00024931,2]
[326672240,1715212254930,-500.0,0.00024931,2]
[326672241,1715212254939,-500.0,0.00024931,2]
[326672242,1715212254948,-126.40078639,0.00024931,2]
[326672243,1715212254962,-373.59921361,0.00024931,2]
[326672244,1715212254972,-151.0,0.00024931,2]
[326672245,1715212254981,-500.0,0.00024931,2]
[326672246,1715212254991,-505.83,0.00024931,2]
[326672247,1715212255001,-500.0,0.00024931,2]
[326672248,1715212255011,-500.0,0.00024931,2]
[326672249,1715212255020,-151.0,0.00024931,2]
[326672250,1715212255030,-500.0,0.00024931,2]
[326672251,1715212255039,-500.0,0.00024931,2]
[326672252,1715212255049,-500.0,0.00024931,2]
[326672253,1715212255058,-500.0,0.00024931,2]
[326672254,1715212255067,-500.0,0.00024931,2]
[326672255,1715212255078,-500.0,0.00024931,2]
[326672256,1715212255087,-500.0,0.00024931,2]
[326672257,1715212255096,-500.0,0.00024931,2]
[326672258,1715212255106,-516.63,0.00024931,2]
[326672259,1715212255116,-151.0,0.00024931,2]
[326672260,1715212255126,-500.0,0.00024931,2]
[326672261,1715212255136,-500.0,0.00024931,2]
[326672262,1715212255145,-500.0,0.00024931,2]
[326672263,1715212255154,-500.0,0.00024931,2]
[326672264,1715212255164,-930.63,0.00024931,2]
[326672265,1715212255174,-500.0,0.00024931,2]
[326672266,1715212255183,-500.0,0.00024931,2]
[326672267,1715212255195,-151.0,0.00024931,2]
[326672268,1715212255205,-1943.22,0.00024931,2]
[326672269,1715212255214,-151.0,0.00024931,2]
[326672270,1715212255224,-500.0,0.00024931,2]
[326672271,1715212255233,-151.0,0.00024931,2]
[326672272,1715212255243,-1308.86,0.00024931,2]
[326672273,1715212255252,-557.92208411,0.00024931,2]
[326672274,1715212255262,-3460.76,0.00024931,2]
[326672275,1715212255272,-500.0,0.00024931,2]
[326672276,1715212255282,-1082.16,0.00024931,2]
[326672277,1715212255291,-833.54,0.00024931,2]
[326672278,1715212255301,-500.0,0.00024931,2]
[326672279,1715212255310,-500.0,0.00024931,2]
[326672280,1715212255319,-1012.78,0.00024931,2]
[326672281,1715212255329,-344.68,0.00024931,2]
[326672282,1715212255338,-500.0,0.00024931,2]
[326672283,1715212255347,-500.0,0.00024931,2]
[326672284,1715212255356,-500.0,0.00024931,2]
[326672285,1715212255366,-151.0,0.00024931,2]
[326672286,1715212255376,-500.0,0.00024931,2]
[326672287,1715212255385,-500.0,0.00024931,2]
[326672288,1715212255395,-500.0,0.00024931,2]
[326672289,1715212255409,-1357.13,0.00024931,2]
[326672290,1715212255419,-500.0,0.00024931,2]
[326672291,1715212255429,-560.9,0.00024931,2]
[326672292,1715212255439,-600.90374255,0.00024931,2]
[326672293,1715212255449,-2305.61,0.00024931,2]
[326672294,1715212255459,-500.0,0.00024931,2]
[326672295,1715212255468,-151.0,0.00024931,2]
[326672296,1715212255477,-500.0,0.00024931,2]
[326672297,1715212255489,-500.0,0.00024931,2]
[326672298,1715212255499,-500.0,0.00024931,2]
[326672299,1715212255508,-760.51,0.00024931,2]
[326672300,1715212255518,-500.0,0.00024931,2]
[326672301,1715212255528,-152.280598,0.00024931,2]
[326672302,1715212255537,-500.0,0.00024931,2]
[326672303,1715212255547,-500.0,0.00024931,2]
[326672304,1715212255556,-500.0,0.00024931,2]
[326672305,1715212255565,-500.0,0.00024931,2]
[326672306,1715212255575,-151.0,0.00024931,2]
[326672307,1715212255584,-500.0,0.00024931,2]
[326672308,1715212255593,-500.0,0.00024931,2]
[326672309,1715212255603,-500.0,0.00024931,2]
[326672310,1715212255613,-500.0,0.00024931,2]
[326672311,1715212255622,-500.0,0.00024931,2]
[326672312,1715212255632,-589.95,0.00024931,2]
[326672313,1715212255641,-500.0,0.00024931,2]
[326672314,1715212255650,-500.0,0.00024931,2]
[326672315,1715212255659,-500.0,0.00024931,2]
[326672316,1715212255669,-651.96,0.00024931,2]
[326672317,1715212255678,-13620.63,0.00024931,2]
[326672318,1715212255688,-500.0,0.00024931,2]
[326672319,1715212255698,-372.96123214,0.00024931,2]
[326672320,1715212255707,-500.0,0.00024931,2]
[326672321,1715212255717,-500.0,0.00024931,2]
[326672322,1715212255726,-643.6887401,0.00024931,2]
[326672323,1715212341243,1465.34100881,0.0001,2]
[326672324,1715212343067,154.73694719,9.999e-05,2]
[326672325,1715212345069,524.11454042,9.999e-05,2]
[326672326,1715212603598,929.9125183,0.00014,2]
[326672327,1715212621900,928.08811683,0.00014287,2]
[326672328,1715212708010,744.57696609,0.000138,2]
[326672329,1715212782063,1465.34100881,0.0001,2]
[326672330,1715212814323,227.09030331,0.000138,2]
[326672331,1715212817796,16108.00888911,0.000138,2]
[326672332,1715212819139,2084.90379946,0.000138,2]
[326672333,1715212825353,880.22323369,0.0001,2]
[326672334,1715212832081,483.96104109,9.999e-05,2]
[326672335,1715212863885,2084.90379946,0.0001,2]
[326672336,1715212882891,2084.90379946,9.999e-05,2]
[326672337,1715212931568,2086.67556332,9.999e-05,2]
[326672338,1715212958792,2086.67556332,9.999e-05,2]
[326672339,1715212982736,2081.36027174,9.999e-05,2]
[326672340,1715213001112,2086.67556332,9.999e-05,2]
[326672341,1715213022388,2086.67556332,9.999e-05,2]
[326672342,1715213042701,1296.32342244,9.999e-05,2]
[326672343,1715213047799,5210.0,9.998e-05,2]
[326672344,1715213184046,2674.32954009,0.00015009,2]
[326672345,1715213193920,5210.0,0.00015009,2]
[326672346,1715213202832,1882.33843824,0.00015009,2]
[326672347,1715213234900,1465.34100881,0.0001,2]
[326672348,1715213339275,276.4378535,0.00014475,2]
[326672351,1715213433988,-1048.245,0.00015026,2]
[326672354,1715213434001,-559.45431183,0.00015026,2]
[326672357,1715213434014,-1066.63022826,0.00015026,2]
[326672358,1715213434023,-1882.33843824,0.00015027,2]
[326672359,1715213434032,-2104.10620135,0.00015028,2]
[326672361,1715213434042,-5210.0,0.00015028,2]
[326672363,1715213434051,-301.59389788,0.00015039,2]
[326672365,1715213434061,-2785.94337812,0.00015039,2]
[326672367,1715213434070,-156.97265212,0.00015039,2]
[326672369,1715213434079,-717.80450215,0.00015039,2]
[326672370,1715213434088,-718.06665172,0.00015039,2]
[326672371,1715213434097,-154.92238428,0.00015039,2]
[326672372,1715213434110,-334.32523427,0.00015039,2]
[326672373,1715213434120,-5310.69010116,0.00015039,2]
[326672374,1715213434130,-1679.27061659,0.00015914,2]
[326672375,1715213434139,-154.78330338,0.00015914,2]
[326672376,1715213434148,-154.78330338,0.00015914,2]
[326672377,1715213434158,-235.10182844,0.00015914,2]
[326672378,1715213434167,-178.20761152,0.00015915,2]
[326672379,1715213434177,-12328.42319494,0.00015916,2]
[326672574,1715213445780,-1465.34100881,0.00015026,2]
[326672591,1715213445923,-1853.22855173,0.00015916,2]
[326672951,1715213449598,1336.45343508,9.999e-05,2]
[326673503,1715213455209,-10718.34825333,0.00015916,2]
[326673505,1715213455220,-164.975406,0.00019178,2]
[326673507,1715213455230,-1777.75881998,0.00019998,2]
[326673509,1715213455241,-1622.84993563,0.00019999,2]
[326673511,1715213455251,-5210.0,0.00019999,2]
[326673514,1715213455261,-46872.93215137,0.0002,2]
[326673516,1715213455273,-319.04835994,0.0002,2]
[326676415,1715214132999,1465.34100881,0.0001,2]
[326676436,1715214638457,-509.00238253,0.0001588,2]
[326676439,1715214638468,-826.65721377,0.0001588,2]
[326676442,1715214638479,-129.68141251,0.0001588,2]
[326676444,1715214638487,-5210.0,0.0001588,2]
[326676446,1715214638495,-2674.32954009,0.00015881,2]
[326676448,1715214638504,-226.59027,0.0001589,2]
[326676450,1715214638512,-569.51563726,0.00018179,2]
[326676451,1715214638521,-24900.0,0.0001818,2]
[326676452,1715214638529,-929.6379252,0.00018462,2]
[326676453,1715214638538,-1284.99654705,0.000188,2]
[326676454,1715214638546,-150.0,0.000189,2]
[326676455,1715214638554,-177.074639,0.00019178,2]
[326676456,1715214638562,-532.10605652,0.00019414,2]
[326676457,1715214638569,-273.25764425,0.00019434,2]
[326676458,1715214638578,-154.94505041,0.00019435,2]
[326676459,1715214638585,-1885.38145435,0.00019435,2]
[326676462,1715214642016,-3767.88212775,0.00019435,2]
[326676465,1715214642027,-2101.73920339,0.00019998,2]
[326676470,1715214642037,-384.2101644,0.00019999,2]
[326676474,1715214642046,-500.0,0.00019999,2]
[326676478,1715214642056,-500.0,0.00019999,2]
[326676481,1715214642068,-366.94118745,0.00019999,2]
[326676482,1715214642079,-500.0,0.00019999,2]
[326676484,1715214642092,-484.04567951,0.00019999,2]
[326676487,1715214642107,-20315.51703998,0.0002,2]
[326676488,1715214642117,-423.54847616,0.0002,2]
[326676491,1715214642128,-2112.76866236,0.0002,2]
[326676492,1715214642137,-5000.0,0.000208,2]
[326676494,1715214642148,-245.0329221,0.00020907,2]
[326676497,1715214642158,-579.56781632,0.00020908,2]
[326676498,1715214642167,-154.78329721,0.00020909,2]
[326676501,1715214642177,-379.5668552,0.00020911,2]
[326676502,1715214642186,-409.8188838,0.00020911,2]
[326676505,1715214642195,-412.46510919,0.00020911,2]
[326676506,1715214642205,-225.03498727,0.00020911,2]
[326676508,1715214642214,-2629.30064822,0.00020912,2]
[326676510,1715214642223,-1675.46804573,0.00021544,2]
[326676512,1715214642232,-166.666666,0.00021644,2]
[326676514,1715214642241,-500.0,0.00021917,2]
[326676516,1715214642250,-500.0,0.00021917,2]
[326676518,1715214642260,-500.0,0.00021917,2]
[326676520,1715214642269,-166.666666,0.00021918,2]
[326676522,1715214642278,-159.42165086,0.00022,2]
[326676524,1715214642287,-283.59918142,0.00022,2]
[326676526,1715214642297,-226.59027,0.00022264,2]
[326676528,1715214642306,-166.666666,0.00022431,2]
[326676530,1715214642315,-1675.46804569,0.00022453,2]
[326676532,1715214642325,-166.666666,0.00022944,2]
[326676534,1715214642336,-153.0,0.00022982,2]
[326676535,1715214642345,-153.0,0.00022982,2]
[326676536,1715214642356,-306.0,0.00022982,2]
[326676537,1715214642365,-153.0,0.00022982,2]
[326676538,1715214642374,-153.0,0.00022982,2]
[326676539,1715214642383,-714.82665538,0.00023,2]
[326676540,1715214642392,-306.0,0.00023056,2]
[326676541,1715214642402,-153.0,0.00023056,2]
[326676542,1715214642411,-150.0,0.00023271,3]
[326676543,1715214642420,-1675.46804569,0.00023362,2]
[326676544,1715214642429,-166.666666,0.00023456,2]
[326676546,1715214642438,-153.0,0.00023804,2]
[326676548,1715214642448,-153.0,0.00023804,2]
[326676549,1715214642457,-153.0,0.00023804,2]
[326676551,1715214642466,-153.0,0.00023804,2]
[326676553,1715214642476,-153.0,0.00023804,2]
[326676555,1715214642486,-153.0,0.00023804,2]
[326676556,1715214642495,-153.0,0.00023804,2]
[326676558,1715214642507,-153.0,0.00023804,2]
[326676560,1715214642516,-153.0,0.00023804,2]
[326676562,1715214642526,-306.0,0.00023804,2]
[326676564,1715214642535,-306.0,0.00023804,2]
[326676565,1715214642544,-153.0,0.00023804,2]
[326676566,1715214642554,-409.4029942,0.00023885,2]
[326676567,1715214642563,-153.0,0.00023885,2]
[326676568,1715214642572,-153.0,0.00023885,2]
[326676569,1715214642582,-166.666666,0.00023969,2]
[326676570,1715214642591,-1675.46804569,0.0002427,2]
[326676571,1715214642602,-150.0,0.00024367,3]
[326676572,1715214642611,-1000.0,0.000244,2]
[326676573,1715214642621,-166.666666,0.00024482,2]
[326676574,1715214642630,-500.0,0.00024656,2]
[326676575,1715214642639,-199.12,0.00024656,2]
[326676576,1715214642648,-7485.59221156,0.00024657,5]
[326676578,1715214645202,-153.0,0.00023885,2]
[326676579,1715214645211,-42190.25487947,0.00024657,5]
[326676581,1715214645221,-500.0,0.00024657,2]
[326676583,1715214645230,-516.66331737,0.00024657,2]
[326676585,1715214645239,-500.0,0.00024657,2]
[326676586,1715214645249,-500.0,0.00024657,2]
[326676587,1715214645259,-500.0,0.00024657,2]
[326676588,1715214645268,-514.62039268,0.00024657,2]
[326676589,1715214645278,-500.0,0.00024657,2]
[326676590,1715214645288,-500.0,0.00024657,2]
[326676591,1715214645297,-500.0,0.00024657,2]
[326676592,1715214645306,-500.0,0.00024657,2]
[326676593,1715214645315,-500.0,0.00024657,2]
[326676594,1715214645325,-500.0,0.00024657,2]
[326676595,1715214645334,-500.0,0.00024657,2]
[326676596,1715214645343,-500.0,0.00024657,2]
[326676597,1715214645353,-293.9094429,0.00024657,2]
[326676598,1715214645363,-500.0,0.00024657,2]
[326676599,1715214645373,-500.0,0.00024657,2]
[326676600,1715214645384,-500.0,0.00024657,2]
[326676601,1715214645393,-500.0,0.00024657,2]
[326676602,1715214645403,-500.0,0.00024657,2]
[326676603,1715214645413,-500.0,0.00024657,2]
[326676604,1715214645422,-500.0,0.00024657,2]
[326676605,1715214645431,-500.0,0.00024657,2]
[326676606,1715214645441,-500.0,0.00024657,2]
[326676607,1715214645450,-500.0,0.00024657,2]
[326676608,1715214645460,-500.0,0.00024657,2]
[326676609,1715214645469,-591.86,0.00024657,2]
[326676610,1715214645479,-502.530519,0.00024657,2]
[326676611,1715214645488,-257.158267,0.00024657,2]
[326676612,1715214645498,-151.0,0.00024657,2]
[326676613,1715214645507,-500.0,0.00024657,2]
[326676614,1715214645516,-500.0,0.00024657,2]
[326676615,1715214645526,-500.0,0.00024657,2]
[326676616,1715214645535,-510.29,0.00024657,2]
[326676617,1715214645545,-500.0,0.00024657,2]
[326676618,1715214645554,-500.0,0.00024657,2]
[326676619,1715214645563,-174.570066,0.00024657,2]
[326676620,1715214645572,-500.0,0.00024657,2]
[326676621,1715214645582,-151.0,0.00024657,2]
[326676622,1715214645591,-1384.69,0.00024657,2]
[326676623,1715214645602,-500.0,0.00024657,2]
[326676624,1715214645613,-500.0,0.00024657,2]
[326676625,1715214645622,-500.0,0.00024657,2]
[326676626,1715214645630,-500.0,0.00024657,2]
[326676627,1715214645640,-151.0,0.00024657,2]
[326676628,1715214645650,-500.0,0.00024657,2]
[326676629,1715214645659,-500.0,0.00024657,2]
[326676630,1715214645668,-500.0,0.00024657,2]
[326676631,1715214645678,-399.11,0.00024657,2]
[326676632,1715214645687,-500.0,0.00024657,2]
[326676633,1715214645697,-500.0,0.00024657,2]
[326676634,1715214645706,-991.98,0.00024657,2]
[326676635,1715214645715,-500.0,0.00024657,2]
[326676636,1715214645725,-500.0,0.00024657,2]
[326676637,1715214645735,-1229.54,0.00024657,2]
[326676638,1715214645744,-500.0,0.00024657,2]
[326676639,1715214645753,-261.68,0.00024657,2]
[326676640,1715214645764,-500.0,0.00024657,2]
[326676641,1715214645773,-500.0,0.00024657,2]
[326676642,1715214645782,-834.77,0.00024657,2]
[326676643,1715214645793,-928.39,0.00024657,2]
[326676644,1715214645802,-500.0,0.00024657,2]
[326676645,1715214645811,-500.0,0.00024657,2]
[326676646,1715214645821,-500.0,0.00024657,2]
[326676647,1715214645830,-151.0,0.00024657,2]
[326676648,1715214645840,-500.0,0.00024657,2]
[326676649,1715214645849,-212.280766,0.00024657,2]
[326676650,1715214645860,-703.36,0.00024657,2]
[326676651,1715214645869,-500.0,0.00024657,2]
[326676652,1715214645878,-500.0,0.00024657,2]
[326676653,1715214645888,-500.0,0.00024657,2]
[326676654,1715214645898,-500.0,0.00024657,2]
[326676655,1715214645907,-500.0,0.00024657,2]
[326676656,1715214645916,-540.79,0.00024657,2]
[326676657,1715214645925,-500.0,0.00024657,2]
[326676658,1715214645936,-220.366698,0.00024657,2]
[326676659,1715214645945,-500.0,0.00024657,2]
[326676660,1715214645955,-13264.56,0.00024657,2]
[326676661,1715214645964,-500.0,0.00024657,2]
[326676662,1715214645979,-500.0,0.00024657,2]
[326676663,1715214645989,-500.0,0.00024657,2]
[326676664,1715214645999,-500.0,0.00024657,2]
[326676665,1715214646009,-500.0,0.00024657,2]
[326676666,1715214646019,-500.0,0.00024657,2]
[326676667,1715214646029,-2113.48,0.00024657,2]
[326676668,1715214646039,-1164.32,0.00024657,2]
[326676669,1715214646048,-500.0,0.00024657,2]
[326676670,1715214646057,-1525.85,0.00024657,2]
[326676671,1715214646069,-500.0,0.00024657,2]
[326676672,1715214646078,-500.0,0.00024657,2]
[326676673,1715214646088,-2031.01,0.00024657,2]
[326676674,1715214646097,-500.0,0.00024657,2]
[326676675,1715214646106,-500.0,0.00024657,2]
[326676676,1715214646117,-546.19,0.00024657,2]
[326676677,1715214646126,-500.0,0.00024657,2]
[326676678,1715214646136,-500.0,0.00024657,2]
[326676679,1715214646148,-500.0,0.00024657,2]
[326676680,1715214646157,-151.0,0.00024657,2]
[326676681,1715214646166,-500.0,0.00024657,2]
[326676682,1715214646175,-500.0,0.00024657,2]
[326676683,1715214646185,-500.0,0.00024657,2]
[326676684,1715214646194,-552.48348451,0.00024657,2]
[326676685,1715214646203,-500.0,0.00024657,2]
[326676686,1715214646212,-439.13357128,0.00024657,2]
[326676687,1715214646221,-151.0,0.00024657,2]
[326676688,1715214646230,-500.0,0.00024657,2]
[326676689,1715214646239,-500.0,0.00024657,2]
[326676690,1715214646248,-500.0,0.00024657,2]
[326676691,1715214646257,-1997.22,0.00024657,2]
[326676692,1715214646266,-597.63,0.00024657,2]
[326676693,1715214646276,-500.0,0.00024657,2]
[326676694,1715214646285,-500.0,0.00024657,2]
[326676695,1715214646294,-500.0,0.00024657,2]
[326676696,1715214646303,-500.0,0.00024657,2]
[326676697,1715214646313,-500.0,0.00024657,2]
[326676698,1715214646322,-500.0,0.00024657,2]
[326676699,1715214646331,-2485.51,0.00024657,2]
[326676700,1715214646341,-500.0,0.00024657,2]
[326676701,1715214646351,-151.0,0.00024657,2]
[326676702,1715214646361,-500.0,0.00024657,2]
[326676703,1715214646371,-75.05337664,0.00024657,2]
[326676735,1715215347391,1465.34100881,0.0001,2]
[326676748,1715215840131,-201.34757025,0.00015781,2]
[326676750,1715215840141,-806.54217096,0.00015889,2]
[326676806,1715215844571,-658.79883785,0.00015889,2]
[326676808,1715215844581,-393.281911,0.0001589,2]
[326676809,1715215844591,-618.8101551,0.000189,2]
[326676810,1715215844601,-1124.37197873,0.00019414,2]
[326676811,1715215844611,-206.08719357,0.00019511,2]
[326676812,1715215844622,-199.34129563,0.00019511,2]
[326676813,1715215844631,-154.75253486,0.00019511,2]
[326676814,1715215844652,-2785.94337812,0.00019511,2]
[326676815,1715215844670,-6935.2496157,0.00019512,2]
[326676816,1715215844680,-1260.12003918,0.00019512,2]
[326676818,1715215844690,-500.0,0.00019512,2]
[326676819,1715215844700,-675.33538187,0.00019513,2]
[326676848,1715215851793,-59324.66461813,0.00019513,2]
[326676851,1715215851803,-24900.0,0.00019514,2]
[326676854,1715215851814,-489.93754333,0.00019536,2]
[326676856,1715215851824,-164.975406,0.00019636,2]
[326676860,1715215851834,-306.009666,0.00019765,2]
[326676863,1715215851844,-37713.62089541,0.0002,2]
[326676868,1715215851856,-7211.0395932,0.0002,2]
[326677436,1715216158475,465.25036391,9.999e-05,2]
[326677437,1715216440539,1465.34100881,0.0001,2]
[326677440,1715216713530,160.01,0.00010959,2]
[326677441,1715216959002,1465.34100881,0.0001,2]
[326677444,1715217043783,-615.2889868,0.00016938,2]
[326677446,1715217043795,-384.8278232,0.00017057,2]
[326677449,1715217043808,-965.07616388,0.00017057,2]
[326677453,1715217043822,-14343.07625612,0.00017057,2]
[326677456,1715217043833,-1290.57659265,0.00017058,2]
[326677460,1715217043845,-929.3633321,0.00017061,2]
[326677464,1715217043856,-983.82548138,0.00017867,2]
[326677468,1715217043867,-344.28492565,0.0001787,2]
[326677472,1715217043878,-154.95481595,0.00017967,2]
[326677476,1715217043888,-155.39710041,0.0001797,2]
[326677480,1715217043900,-186.4501491,0.00017971,2]
[326677484,1715217043911,-24900.0,0.00017973,2]
[326677517,1715217044056,-154.73694719,0.00018,2]
[326677522,1715217044075,-7946.92894707,0.00018,2]
[326677525,1715217044086,-488.70895939,0.000189,2]
[326677527,1715217044096,-816.25139438,0.00018996,2]
[326677529,1715217044107,-436.80511281,0.00019,2]
[326677532,1715217044118,-164.9754069,0.00019178,2]
[326677535,1715217044128,-177.074639,0.00019178,2]
[326677537,1715217044138,-344.28492565,0.0001961,2]
[326677539,1715217044150,-1882.33843824,0.00019759,2]
[326677541,1715217044160,-309.36580396,0.00019759,2]
[326677543,1715217044171,-788.21386085,0.0001976,2]
[326677545,1715217044182,-391.95003468,0.00019898,2]
[326677547,1715217044193,-582.53808868,0.00019998,2]
[326677549,1715217044203,-392.24652727,0.00019998,2]
[326677551,1715217044215,-22582.83706268,0.0002,2]
[326677553,1715217044225,-447.76467997,0.0002,2]
[326677555,1715217044237,-379.96231687,0.0002,2]
[326677557,1715217044247,-151.0,0.0002,2]
[326677559,1715217044257,-411.63777765,0.00020893,2]
[326677561,1715217044270,-1091.14792069,0.00020895,2]
[326677562,1715217044281,-1160.18614579,0.00020896,2]
[326677564,1715217044292,-3343.23979157,0.00020896,2]
[326677566,1715217044302,-7829.53826519,0.00020897,2]
[326677568,1715217044313,-666.93039453,0.00020898,2]
[326677570,1715217044323,-155.0150874,0.000209,2]
[326677572,1715217044334,-184.9507612,0.00020902,2]
[326677574,1715217044343,-192.77705139,0.00020904,2]
[326677576,1715217044354,-744.57696609,0.00020909,2]
[326677579,1715217044367,-1977.01137973,0.00020912,2]